[Event "44th Chess Olympiad Open 2022"]
[Site "Chennai"]
[Date "2022.08.06"]
[Round "8.23"]
[White "Kuybokarov, Temur"]
[Black "Keinanen, Toivo"]
[Result "1/2-1/2"]
[WhiteElo "2583"]
[BlackElo "2477"]
[Annotator "TA"]
[PlyCount "91"]
[EventDate "2022.??.??"]
[TimeControl "60"]

{[%evp 20,91,39,43,51,39,43,59,42,54,46,56,54,54,48,50,56,29,48,41,29,10,41,20,
47,50,38,-10,71,0,0,-50,-59,-52,-25,-22,0,-82,-22,-199,-188,-231,-219,-219,
-210,-189,-187,-195,-195,-350,-200,-204,0,0,0,0,0,0,0,0,0,0,0,0,0,0,0,0,0,0,0,
0,0,0]} 1. e4 {[%emt 0:00:05]} e6 {[%emt 0:00:01]} 2. d4 {[%emt 0:00:04]} d5 {
[%emt 0:00:01]} 3. Nc3 {[%emt 0:00:04]} Nf6 {[%emt 0:00:01]} 4. e5 {[%emt 0:00:
00]} Nfd7 {[%emt 0:00:02]} 5. f4 {[%emt 0:00:10]} c5 {[%emt 0:00:00]} 6. Nf3 {
[%emt 0:00:09]} Nc6 {[%emt 0:00:03]} 7. Be3 {[%emt 0:00:06]} Qb6 {[%emt 0:00:
00]} 8. Na4 {[%emt 0:03:23]} Qa5+ {[%emt 0:00:01]} 9. c3 {[%emt 0:00:21]} b6 {
[%emt 0:00:22]} 10. Bd2 {[%emt 0:07:05]} c4 {[%emt 0:00:02]} 11. b4 {[%emt 0:
00:00]} Nxb4 {[%emt 0:00:00] C11: French: Classical System: 4 e5 and 4 Bg5
dxe4.} 12. cxb4 {[%emt 0:00:05]} Bxb4 {[%emt 0:00:02]} 13. Qc2 {[%emt 0:10:07]}
Bxd2+ {[%emt 0:00:46] White is slightly better.} 14. Nxd2 {[%emt 0:00:07]} O-O
{[%emt 0:00:10]} 15. Be2 {[%emt 0:06:07]} b5 {[%emt 0:00:03]} 16. Nc3 {[%emt 0:
00:00]} b4 {[%emt 0:00:01]} 17. Nd1 {[%emt 0:03:57]} f6 {[%emt 0:00:52]} 18.
Nf3 {[%emt 0:06:36]} Qb6 {[%emt 0:00:53]} 19. Nf2 {[%emt 0:02:14]} fxe5 {
[%emt 0:00:43]} 20. fxe5 {[%emt 0:00:21]} Nb8 {[%emt 0:00:01]} (20... Rxf3 21.
Bxf3 Qxd4 22. O-O $16) 21. O-O {[%emt 0:17:43]} Nc6 {[%emt 0:01:11]} 22. Rad1 {
[%emt 0:02:19]} (22. Ng5 Rf5 23. Nf3 Nxd4 24. Nxd4 Qxd4 $15) 22... Bd7 $1 {
[%emt 0:01:59][%cal Yc8d7,Yd7e8,Ye8h5,Yh5e2] [#]} 23. h4 $146 {[%emt 0:06:44]}
(23. Kh1 $14) ({Predecessor:} 23. Qd2 a5 24. h4 Ne7 25. h5 Nf5 26. Kh2 a4 27.
Rb1 Rab8 28. a3 b3 29. g4 {0-1 (42) Frolyanov,D (2532) -Markelova,L (2169)
Kazan 2018}) 23... Rf5 {[%emt 0:20:38]} (23... h6 $11) 24. Ng4 {[%emt 0:07:08]}
(24. Nh3 $16) 24... Raf8 $11 {[%emt 0:09:11]} 25. Kh1 {[%emt 0:01:34]} (25. Kh2
$11) 25... Be8 $1 $15 {[%emt 0:01:56] Black has compensation.} 26. Qd2 {
[%emt 0:11:55]} Bh5 {[%emt 0:11:13]} (26... Bg6 $5 {[%cal Ra7a5]}) 27. Ngh2 {
[%emt 0:00:13]} Rf4 {[%emt 0:05:25] Against g4} 28. Ng5 {[%emt 0:01:00]} (28.
g3 $1 $11 {keeps the balance.} Re4 29. g4 Bxg4 30. Nxg4 Rxg4 31. Nh2 Rxd4 32.
Rxf8+ Kxf8 33. Rf1+ Ke8 34. Qg5) 28... c3 {[%emt 0:13:42]} (28... Rxf1+ $17 29.
Rxf1 Rxf1+ 30. Nxf1 c3) 29. Qc1 $2 {[%emt 0:03:34] [#]} Rxf1+ $1 $19 {[%emt 0:
12:57]} (29... Bxe2 30. Rxf4 Bxd1 31. Rxf8+ Kxf8 32. Qf4+ Ke7 33. Qf7+ Kd8 34.
Nxe6+ Kc8 35. Nc5 $11) 30. Rxf1 {[%emt 0:00:00]} Bxe2 {[%emt 0:01:53]} 31.
Rxf8+ {[%emt 0:00:00]} Kxf8 {[%emt 0:00:00][%cal Yg8f8,Yf8e7,Ye7d8,Yd8c8]} 32.
Qf4+ {[%emt 0:00:00]} Ke7 {[%emt 0:00:24]} 33. Qf7+ {[%emt 0:00:14]} Kd8 {
[%emt 0:00:01]} 34. Nxe6+ {[%emt 0:01:07]} Kc8 {[%emt 0:00:01]} 35. Nc5 {
[%emt 0:00:57]} c2 $2 {[%emt 0:00:00]} ({Weaker is} 35... Nxd4 36. Qd7+ Kb8 37.
Qe8+ Kc7 38. Qd7+ Kb8 39. Qe8+ Kc7 40. Qd7+ Kb8 $11) (35... Qc7 $19 36. Qg8+ (
36. Qxd5 $2 c2 $19) (36. Qe6+ $2 Kb8 $19) 36... Nd8 37. Qxh7 Nb7 38. Qf5+ Kb8)
36. Qf5+ $11 {[%emt 0:04:40] The position is equal.} Kb8 {[%emt 0:00:00]} 37.
Qxc2 {[%emt 0:00:34] [#] Hoping for Nd7+.} Nxd4 {[%emt 0:00:00]} 38. Nd7+ {
[%emt 0:00:26] Pair of Knights!} Kb7 {[%emt 0:00:00]} 39. Qd2 {[%emt 0:00:50]}
Qb5 {[%emt 0:01:25] And now ...Ne6 would win.} 40. Qxd4 {[%emt 0:00:13]} Qxd7 {
[%emt 0:00:07]} 41. Qxb4+ {[%emt 0:00:00] KQB-KQN} Qb5 {[%emt 0:34:24]} 42.
Qe7+ {[%emt 0:06:02]} Kb6 {[%emt 0:00:00] aiming for ...Qb1+.} 43. Qd6+ {
[%emt 0:00:00]} Kb7 {[%emt 0:00:00] Threatens to win with ...Qb1+.} 44. Qe7+ {
[%emt 0:00:00]} Kb6 {[%emt 0:00:00]} 45. Qd6+ {[%emt 0:00:00]} Kb7 {[%emt 0:00:
00] Strongly threatening ...Qb1+.} 46. Qe7+ {[%emt 0:00:00] And White is the
lucky defender. Weighted Error Value: White=0.23 (precise) /Black=0.18 (very
precise)} 1/2-1/2

[Event "44th Chess Olympiad Open 2022"]
[Site "Chennai"]
[Date "2022.08.06"]
[Round "8.23"]
[White "Tan, Justin"]
[Black "Sipila, Vilka"]
[Result "1/2-1/2"]
[WhiteElo "2508"]
[BlackElo "2416"]
[Annotator "TA"]
[PlyCount "132"]
[EventDate "2022.??.??"]
[TimeControl "60"]

{[%evp 13,132,20,64,9,28,-10,0,-2,0,0,0,-19,16,21,48,22,40,32,22,30,63,49,54,
32,92,61,81,17,35,31,106,140,87,56,79,0,45,25,90,56,62,82,74,57,211,200,212,
121,323,320,522,521,581,564,767,766,615,126,114,110,110,110,170,109,276,109,
152,98,91,66,70,43,44,24,24,0,0,0,0,-6,23,0,142,132,158,136,151,137,141,116,
205,0,8,5,5,5,41,41,183,169,5224,5224,5072,4640,5057,4562,415,5,5,0,0,0,0,0,17,
0,0,0,0,0,4562]} 1. e4 {[%emt 0:00:03]} e6 {[%emt 0:00:06]} 2. d4 {[%emt 0:00:
00]} d5 {[%emt 0:00:05]} 3. e5 {[%emt 0:00:04]} c5 {[%emt 0:00:05]} 4. c3 {
[%emt 0:00:04]} Nc6 {[%emt 0:00:06]} 5. Nf3 {[%emt 0:00:06]} Bd7 {[%emt 0:00:
00]} 6. Be2 {[%emt 0:00:15]} Qb6 {[%emt 0:00:35]} 7. O-O {[%emt 0:00:13]} a5 {
[%emt 0:04:31]} 8. dxc5 {[%emt 0:15:05] C02: French: Advance Variation.} (8.
Na3 $14) 8... Bxc5 $11 {[%emt 0:00:30]} 9. a4 {[%emt 0:00:06]} (9. Nbd2 $5 {
[%cal Rd2b3]}) 9... Nge7 {[%emt 0:01:56]} 10. Bd3 {[%emt 0:00:54] [#]} f6 $146
{[%emt 0:07:32]} ({Predecessor:} 10... Ng6 11. Qe2 O-O 12. h4 f5 13. h5 Nge7
14. Na3 Nd8 15. Nb5 Bxb5 16. axb5 Nf7 {1-0 (33) Poliakova,V (2017)-Ajusheva,R 
(1416) Minsk 2022}) 11. exf6 {[%emt 0:19:51]} gxf6 {[%emt 0:00:58]} 12. Nd4 {
[%emt 0:03:01]} Ne5 {[%emt 0:43:19]} (12... Nxd4 {keeps more tension.} 13. Qh5+
Kd8 14. cxd4 Bxd4 15. Nc3 e5) 13. Bb5 {[%emt 0:03:15]} Bxd4 {[%emt 0:13:08]} (
13... Rg8 {is interesting.} 14. Kh1 Bxb5 15. axb5 Nf7) 14. cxd4 {[%emt 0:03:05]
} Bxb5 {[%emt 0:00:24]} 15. axb5 {[%emt 0:01:00]} N5g6 {[%emt 0:02:49]} 16. Nc3
{[%emt 0:02:08]} O-O {[%emt 0:01:35]} 17. Ra4 {[%emt 0:08:07]} Qd6 {[%emt 0:00:
00]} 18. g3 {[%emt 0:02:02]} b6 {[%emt 0:10:12]} (18... Nf5 $14) 19. Re1 {
[%emt 0:04:59]} Nf5 {[%emt 0:00:00]} 20. Qf3 {[%emt 0:00:42]} (20. h4 $1 $16)
20... Qd7 {[%emt 0:03:19]} 21. h4 {[%emt 0:02:54][%cal Yh2h4,Yh4h5]} Rf7 {
[%emt 0:02:14]} (21... Rae8 $14) 22. h5 $16 {[%emt 0:02:03]} Nf8 {[%emt 0:00:
00]} 23. Qd3 {[%emt 0:07:42]} Rc8 {[%emt 0:02:11]} 24. Re2 {[%emt 0:00:57]} (
24. Bf4 $16) 24... Rg7 {[%emt 0:01:57]} (24... Ng7 $5 {[%cal Rg7h5]}) 25. Bf4 {
[%emt 0:00:41]} Qf7 {[%emt 0:01:20] [#]} (25... h6 $11 {remains equal.}) 26.
Nxd5 $1 {[%emt 0:06:44]} Nxg3 {[%emt 0:00:20]} (26... Rd8 27. Ne3) 27. fxg3 {
[%emt 0:00:10]} exd5 {[%emt 0:00:14]} 28. Qf5 {[%emt 0:00:31]} (28. h6 $5 {
[%cal Rh6g7]} Qg6 29. Qf3 $16) 28... Qd7 {[%emt 0:00:52]} (28... Re8 $1 $14 29.
Rxe8 Qxe8 30. Qxd5+ Qe6 31. Qxe6+ Nxe6) 29. Qxd7 $1 $18 {[%emt 0:05:21]} ({Not
} 29. Qxf6 Qxb5 30. Re7 (30. h6 $2 Rg6 $19) 30... Rxe7 31. Qxe7 Qxa4 $11) 29...
Nxd7 {[%emt 0:00:35]} 30. Re6 {[%emt 0:00:15]} (30. Ra3 $18) 30... Rc2 $2 {
[%emt 0:00:32]} (30... h6 $16) 31. Ra3 {[%emt 0:01:14]} Nf8 $2 {[%emt 0:00:28]}
(31... Rxb2 $2 32. Re8+ Nf8 33. Bh6 $18) (31... Rc8 {is a better defense.} 32.
Rae3 Rf7) 32. Re8 {[%emt 0:01:38]} Rxb2 {[%emt 0:00:29]} 33. Bd6 {[%emt 0:00:
00][%csl Gd6][%cal Re8f8]} Rf7 {[%emt 0:00:16]} 34. Rc3 {[%emt 0:05:08]} Kg7 {
[%emt 0:00:06]} 35. Rcc8 $2 {[%emt 0:02:41]} (35. Bxf8+ $18 Rxf8 36. Rc7+ Rf7
37. h6+ Kxh6 38. Rxf7) 35... Kh6 $16 {[%emt 0:00:07]} 36. Bxf8+ {[%emt 0:00:33]
} Kxh5 {[%emt 0:00:05]} 37. Bd6 {[%emt 0:00:22]} Kg4 {[%emt 0:01:06]} (37...
Kg6 $16) 38. Rc3 {[%emt 0:00:22]} (38. Re1 $18) 38... Rd7 $2 {[%emt 0:00:37]} (
38... Rxb5 $16 {might work better.} 39. Rg8+ Kf5) 39. Bb8 $2 {[%emt 0:01:19]} (
39. Ba3 $18 {and White stays clearly on top.} Rxb5 40. Kg2) 39... Rxb5 {
[%emt 0:00:33]} 40. Rg8+ {[%emt 0:02:37]} (40. Rc2 $142 $1) 40... Kf5 {[%emt 0:
00:00]} 41. Re3 {[%emt 0:16:27][%csl Gg8][%cal Rg3g4]} h5 {[%emt 0:00:23]
Inhibits g4+.} 42. Rf8 {[%emt 0:01:00] White is much more active.} (42. Rge8 $5
{[%cal Re3f3]}) 42... Kg6 {[%emt 0:07:42]} 43. Re6 {[%emt 0:00:58]} Rf7 {
[%emt 0:00:16]} 44. Rd8 {[%emt 0:01:21]} a4 {[%emt 0:00:44]} 45. Bf4 {[%emt 0:
00:00]} Kf5 {[%emt 0:01:52]} 46. Rc6 {[%emt 0:09:10]} Ra7 {[%emt 0:04:50]
Hoping for ...a3.} 47. Rdd6 {[%emt 0:00:11][%csl Yb6,Yf6]} a3 {[%emt 0:01:51]}
(47... Rf7 $11) 48. Rxf6+ {[%emt 0:00:02]} Ke4 {[%emt 0:03:29]} 49. Rfe6+ {
[%emt 0:00:48]} Kxd4 {[%emt 0:05:23]} 50. Be5+ {[%emt 0:02:32]} Kd3 {[%emt 0:
00:00] ...d4 is the strong threat.} 51. Rc3+ $1 {[%emt 0:00:25]} Kd2 {[%emt 0:
00:00] [#]} (51... Ke4 $16) 52. Rec6 $2 {[%emt 0:00:21]} (52. Rf3 $1 $18 {
White threatens Bf4+ and mate.} Ke2 53. Kg2) 52... Rc5 $132 {[%emt 0:06:03]
Black has counterplay} 53. R3xc5 {[%emt 0:00:22]} bxc5 {[%emt 0:00:00]} 54.
Rxc5 $11 {[%emt 0:00:06] Endgame KRB-KR} a2 {[%emt 0:00:04]} 55. Rxd5+ {
[%emt 0:00:33]} Ke2 {[%emt 0:00:23] [#]} (55... Ke3 $14) 56. Kg2 $1 $18 {
[%emt 0:00:52] Threatens to win with Ba1.} a1=Q $2 {[%emt 0:00:36]} (56... h4)
57. Bxa1 {[%emt 0:00:30]} Rxa1 {[%emt 0:00:06]} 58. Rxh5 {[%emt 0:00:00] KR-KR}
Kd3 {[%emt 0:01:34]} 59. Re5 {[%emt 0:00:40]} Kd4 {[%emt 0:00:56]} 60. Re8 $2 {
[%emt 0:00:32]} (60. Rg5 $18 Ke4 61. Rh5) 60... Ra7 $1 $11 {[%emt 0:01:13] The
position is equal.} 61. g4 {[%emt 0:00:07]} Ra3 $1 {[%emt 0:00:00]} 62. Kf2 {
[%emt 0:00:16]} Rb3 {[%emt 0:00:10]} 63. Re1 {[%emt 0:00:45]} Ra3 {[%emt 0:00:
14]} 64. g5 {[%emt 0:01:33]} Ra5 {[%emt 0:00:14]} 65. Rg1 {[%emt 0:00:40]
Strongly threatening Kf3.} Ke5 {[%emt 0:00:26]} 66. Kg3 {[%emt 0:07:05]} Ra8 $2
{Weighted Error Value: White=0.46/Black=0.43. An unexpected result.} (66... Kf5
$11) 1/2-1/2

[Event "44th Chess Olympiad Open 2022"]
[Site "Chennai"]
[Date "2022.08.06"]
[Round "8.23"]
[White "Sklyarov, Dmitry V."]
[Black "Cheng, Bobby"]
[Result "0-1"]
[WhiteElo "2474"]
[BlackElo "2540"]
[Annotator "TA"]
[PlyCount "144"]
[EventDate "2022.??.??"]
[TimeControl "60"]

{[%evp 16,144,0,0,0,0,0,0,0,0,0,0,0,-7,5,8,12,0,0,0,3,-19,-12,-7,0,-20,-14,-47,
-56,-54,-52,-75,-83,-84,-91,-98,-72,-67,-70,-65,-65,-64,-62,-60,-64,-81,-27,
-39,-52,-62,-50,-58,-51,-54,-26,-45,-28,-38,-43,-57,-57,-57,-57,-57,-57,-57,0,
-57,-57,-57,-51,-57,-20,-41,-22,-62,-17,-16,-14,-15,-10,-57,-57,-68,-14,-56,
-31,-44,-44,-43,-31,-74,-74,-74,-74,-74,-74,-74,-74,-74,-74,-75,-74,-75,-75,
-75,-75,-75,-75,-75,-75,-75,-75,-75,-75,-75,-75,-75,-75,-75,-75,-75,-74,-75,
-75,-75,-75,-29988,-29989,-29989,-29990]} 1. e4 {[%emt 0:00:01][%cal Ye2e4,
Ye4e5] Rogozenco,D} c5 {[%emt 0:00:29]} 2. c3 {[%emt 0:02:13]} Nf6 {[%emt 0:00:
48]} 3. e5 {[%emt 0:00:08]} Nd5 {[%emt 0:00:04]} 4. d4 {[%emt 0:00:00]} cxd4 {
[%emt 0:00:22]} 5. cxd4 {[%emt 0:00:05]} d6 {[%emt 0:01:50][%cal Yd7d6,Yd6e5]}
6. Nf3 {[%emt 0:00:09]} Nc6 {[%emt 0:02:17]} 7. Bc4 {[%emt 0:00:40]} dxe5 {
[%emt 0:02:51]} 8. Bxd5 {[%emt 0:04:29]} Qxd5 {[%emt 0:00:00]} 9. Nc3 {[%emt 0:
00:02]} Qd6 {[%emt 0:03:10][%cal Re5d4] B22: Sicilian: 2 c3.} 10. d5 {[%emt 0:
00:20]} Nd4 {[%emt 0:01:59]} (10... e4 11. Nxe4 Qb4+ 12. Nc3 $16) 11. Nxd4 {
[%emt 0:01:30]} exd4 {[%emt 0:00:05] The position is equal.} 12. Qxd4 {[%emt 0:
00:03] Hoping for Nb5.} e5 {[%emt 0:00:18]} 13. Qd3 {[%emt 0:00:00]} Bd7 {
[%emt 0:27:21]} 14. O-O {[%emt 0:02:04]} f5 {[%emt 0:07:06]} (14... Be7 {
feels hotter.} 15. Re1 O-O 16. f4 exf4 17. Bxf4 Qb6+) 15. Re1 {[%emt 0:13:37]
And now Bf4 would win.} Kf7 {[%emt 0:00:29]} 16. a4 {[%emt 0:00:00] [#]} Qf6 $5
$146 {[%emt 0:04:19] New and interesting.} ({Predecessor:} 16... a6 17. b3 e4
18. Qh3 Rc8 19. Bb2 Be7 20. Ba3 Qh6 21. Qxh6 gxh6 22. Ne2 Bxa3 23. Rxa3 {
½-½ (64) Sermek,D (2577)-Borisek,J (2443) Terme Zrece 2003 CBM 097 
[Rogozenco,D]}) 17. Bd2 {[%emt 0:13:26]} a6 {[%emt 0:07:01] Inhibits Nb5.} 18.
Nd1 {[%emt 0:02:35]} Bd6 {[%emt 0:02:26]} 19. Qb3 {[%emt 0:00:00]} b5 {[%emt 0:
03:34]} 20. axb5 {[%emt 0:01:04]} axb5 {[%emt 0:00:04]} 21. Rxa8 {[%emt 0:00:
19]} Rxa8 {[%emt 0:00:04]} 22. Bb4 {[%emt 0:00:44]} Ra1 {[%emt 0:02:35]} 23.
Rf1 {[%emt 0:03:57]} Bxb4 {[%emt 0:08:58]} 24. Qxb4 {[%emt 0:00:34]} Ra4 {
[%emt 0:00:19]} 25. Qb3 {[%emt 0:03:19]} Qd6 {[%emt 0:00:00] Black is more
active.} 26. Nc3 {[%emt 0:00:39][%csl Ya4,Yb5][%cal Yd1c3,Yc3a2,Ya2b4,Yb4c2,
Yc2a3,Ya3c4,Yc4e3]} Ra5 {[%emt 0:00:19]} 27. Na2 {[%emt 0:03:16] Inhibits b4.}
b4 {[%emt 0:02:27]} 28. Qxb4 {[%emt 0:00:31]} Qxb4 {[%emt 0:01:16]} ({Of
course not} 28... Qxd5 29. Nc3 Qc5 30. Qh4 $11) 29. Nxb4 $15 {[%emt 0:00:01]
Endgame KRB-KRN} Rb5 {[%emt 0:02:46]} 30. Nc2 {[%emt 0:01:59]} Rc5 {[%emt 0:00:
50]} (30... Rxb2 $17 31. Ne3 Rd2) 31. Na3 {[%emt 0:02:44]} Rxd5 {[%emt 0:00:40]
} 32. Rc1 {[%emt 0:00:16]} Ke6 {[%emt 0:00:00]} 33. f3 {[%emt 0:00:30]} g5 {
[%emt 0:00:45]} 34. Nc4 {[%emt 0:00:56]} Rc5 {[%emt 0:03:06]} 35. Kf2 {[%emt 0:
01:51]} Kf6 {[%emt 0:01:06]} 36. Rc3 {[%emt 0:00:00]} Be6 {[%emt 0:01:59]} 37.
Ne3 {[%emt 0:01:32]} Rb5 {[%emt 0:00:08]} 38. Rc2 {[%emt 0:00:26]} h5 {[%emt 0:
02:09]} 39. h3 {[%emt 0:01:13]} Rb6 {[%emt 0:00:00]} 40. Rd2 {[%emt 0:00:44]}
Rb5 {[%emt 0:00:35]} ({Black should try} 40... Rb4 $15) 41. Nd1 {[%emt 0:32:35]
} (41. Rc2 $1 $11) 41... Rb4 {[%emt 0:04:02]} 42. Ne3 {[%emt 0:00:00]} Kg6 {
[%emt 0:05:30]} 43. Re2 {[%emt 0:00:00]} ({Don't play} 43. Rd6 Rxb2+ 44. Kf1
Kf7 $17) 43... Ra4 {[%emt 0:04:30]} 44. Rc2 {[%emt 0:00:00]} Kf6 {[%emt 0:04:
07]} 45. Rd2 {[%emt 0:00:00]} Ra2 {[%emt 0:00:00]} 46. Nd1 {[%emt 0:00:00]} Ra1
{[%emt 0:00:46][%cal Ya2a1,Ya1c1,Yc1c4]} 47. Nc3 {[%emt 0:00:00]} Rc1 {[%emt 0:
00:45]} 48. Ne2 {[%emt 0:00:00]} (48. g3 $11 {is superior.}) 48... Rc4 {
[%emt 0:01:14]} 49. Ng3 {[%emt 0:00:00]} Kg6 {[%emt 0:03:20]} ({Better is} 
49... h4 $15 50. Ne2 Rb4) 50. Re2 {[%emt 0:00:00]} f4 {[%emt 0:01:56]} (50...
h4 $5 {[%cal Rh4g3]} 51. Nf1 Kf6 $17) 51. Ne4 {[%emt 0:00:00]} g4 {[%emt 0:00:
27]} 52. hxg4 {[%emt 0:00:00]} hxg4 {[%emt 0:00:04]} 53. g3 {[%emt 0:00:00]}
gxf3 $1 {[%emt 0:01:18]} 54. Kxf3 {[%emt 0:00:00] [#]} Bd5 $1 {[%emt 0:01:07]}
55. gxf4 {[%emt 0:00:00]} Kf5 {[%emt 0:00:21][%csl Ye4,Yf4]} 56. fxe5 {[%emt 0:
00:00]} Kxe5 {[%emt 0:00:57]} (56... Rxe4 57. Rxe4 Bxe4+ 58. Kg3 $11) 57. Ke3 {
[%emt 0:00:00]} Bxe4 $17 {[%emt 0:00:09] KRB-KR} ({Much weaker is} 57... Rxe4+
58. Kf3 $11) 58. b4 {[%emt 0:00:00]} Rxb4 {[%emt 0:01:23]} 59. Rd2 {[%emt 0:00:
00]} Rb3+ {[%emt 0:00:00]} 60. Ke2 {[%emt 0:00:00]} Bf3+ {[%emt 0:00:03]} 61.
Kf2 {[%emt 0:00:00]} Kf4 {[%emt 0:00:04]} 62. Rd4+ {[%emt 0:00:00]} Be4 {
[%emt 0:00:05]} 63. Rd2 {[%emt 0:00:00] Against Rb2} Rh3 {[%emt 0:02:13]} 64.
Ke2 {[%emt 0:00:00]} Rg3 {[%emt 0:01:28]} 65. Kf2 {[%emt 0:00:14]} Bd3 {
[%emt 0:00:25]} 66. Ke1 {[%emt 0:00:00]} Ke3 {[%emt 0:00:29][%cal Rg3g1]} 67.
Re2+ {[%emt 0:00:01]} Kd4 {[%emt 0:00:13]} 68. Rf2 {[%emt 0:01:20]} Kc3 {
[%emt 0:01:30]} 69. Rf4 {[%emt 0:00:00]} Rg2 {[%emt 0:00:20] ( -> ...Re2+)} 70.
Rf3 {[%emt 0:01:17]} Ra2 {[%emt 0:00:17]} 71. Rf4 $2 {[%emt 0:02:10]} (71. Re3
$17) 71... Re2+ {[%emt 0:00:26]} 72. Kd1 {[%emt 0:00:16] [#]} Re3 $1 {[%emt 0:
01:46] Weighted Error Value: White=0.11 (very precise) /Black=0.09 (flawless)}
0-1

[Event "44th Chess Olympiad Open 2022"]
[Site "Chennai"]
[Date "2022.08.06"]
[Round "8.23"]
[White "Koykka, Pekka"]
[Black "Zhao, Zong-Yuan"]
[Result "1/2-1/2"]
[WhiteElo "2361"]
[BlackElo "2513"]
[Annotator "TA"]
[PlyCount "118"]
[EventDate "2022.??.??"]
[TimeControl "60"]

{[%evp 15,118,5,1,0,4,-10,-1,-18,23,-13,0,0,4,-6,14,0,0,0,0,0,0,0,0,0,0,0,0,0,
0,0,0,0,0,0,0,0,0,0,0,0,0,0,0,0,0,0,0,0,0,0,-8,-8,-12,-39,-39,-39,0,0,0,0,0,0,
0,0,0,0,0,0,0,0,0,0,0,0,0,0,0,0,0,0,0,0,0,0,0,0,0,0,0,0,0,0,0,0,0,0,0,-4,0,-8,
-8,-12,-8,-17,0]} 1. e4 {[%emt 0:00:05]} e5 {[%emt 0:00:06]} 2. Nf3 {[%emt 0:
00:00]} Nf6 {[%emt 0:00:04]} 3. Nxe5 {[%emt 0:04:02]} d6 {[%emt 0:00:04]} 4.
Nf3 {[%emt 0:00:08]} Nxe4 {[%emt 0:00:06]} 5. Qe2 {[%emt 0:06:21]} Qe7 {
[%emt 0:00:05]} 6. d3 {[%emt 0:00:16]} Nf6 {[%emt 0:00:04]} 7. Bg5 {[%emt 0:00:
00]} Qxe2+ {[%emt 0:00:18]} 8. Bxe2 {[%emt 0:00:09]} Be7 {[%emt 0:00:03]} 9. c4
{[%emt 0:04:15] C42: Petroff Defence: 3 Nxe5 and unusual White 3rd moves.} h6 {
[%emt 0:14:15]} 10. Bf4 {[%emt 0:01:29]} Nc6 {[%emt 0:07:54]} 11. Nc3 {[%emt 0:
00:00]} Bf5 {[%emt 0:00:50] [#]} 12. h3 $146 {[%emt 0:23:27]} ({Predecessor:} 
12. O-O-O O-O-O 13. Rhe1 Rhe8 14. a3 d5 15. Nb5 Rd7 16. Nfd4 Nxd4 17. Nxd4 Bh7
18. Bf3 dxc4 19. dxc4 {½-½ (34) Jakubowski,K (2564)-Cyborowski,L (2511)
Czech Republic 2015}) 12... g5 {[%emt 0:11:12]} 13. Be3 {[%emt 0:02:02]} O-O-O
{[%emt 0:03:57]} 14. O-O-O {[%emt 0:08:50]} Be6 {[%emt 0:25:28]} 15. Nd4 {
[%emt 0:17:58]} Nxd4 {[%emt 0:00:08]} 16. Bxd4 {[%emt 0:00:35]} c5 {[%emt 0:00:
00]} 17. Be3 {[%emt 0:06:35]} d5 {[%emt 0:00:43]} 18. d4 {[%emt 0:00:24]} dxc4
{[%emt 0:05:17]} 19. dxc5 {[%emt 0:00:12]} Nd5 {[%emt 0:02:04]} (19... Rhf8 {
is more complex.} 20. Bd4 Nd5 21. Bxc4 Nxc3 22. Bxe6+ fxe6 23. bxc3 Rd5) 20.
Bxc4 {[%emt 0:05:10]} Nxe3 {[%emt 0:00:15]} 21. Bxe6+ {[%emt 0:00:05]} fxe6 {
[%emt 0:00:01]} 22. fxe3 {[%emt 0:00:26]} Bxc5 {[%emt 0:00:03]} 23. Kc2 {
[%emt 0:01:02]} Bxe3 {[%emt 0:13:53]} 24. Rhe1 {[%emt 0:00:31]} Rxd1 {[%emt 0:
00:00]} 25. Nxd1 $11 {[%emt 0:00:20] Endgame KRB-KRN} Bc5 {[%emt 0:00:00]} 26.
Rxe6 {[%emt 0:00:10]} Kd7 {[%emt 0:00:04]} 27. Rg6 {[%emt 0:03:37]} Re8 {
[%emt 0:02:51]} 28. Nc3 {[%emt 0:03:43]} Re6 {[%emt 0:01:23]} 29. Rg7+ {
[%emt 0:00:18]} Kc6 {[%emt 0:00:02]} 30. Rh7 {[%emt 0:02:40]} b5 {[%emt 0:00:
00][%cal Yb7b5,Yb5b4]} 31. a4 {[%emt 0:01:39]} b4 {[%emt 0:02:15]} 32. Nb5 {
[%emt 0:00:29]} a6 {[%emt 0:01:18]} 33. Nc7 {[%emt 0:01:16]} Re2+ {[%emt 0:02:
25]} 34. Kd3 {[%emt 0:01:19]} Rxb2 {[%emt 0:00:42]} 35. Nxa6 {[%emt 0:00:14]}
Rxg2 {[%emt 0:01:41]} 36. Rxh6+ {[%emt 0:01:16] The position is equal.} Kd5 {
[%emt 0:00:05]} 37. Nxc5 {[%emt 0:01:38] [#] Hoping for Nd7.} Kxc5 {[%emt 0:00:
59] KR-KR} 38. Rh8 {[%emt 0:00:44]} Rg3+ {[%emt 0:00:08]} 39. Kc2 {[%emt 0:00:
11]} b3+ {[%emt 0:00:35]} 40. Kb2 {[%emt 0:01:45]} Kb4 {[%emt 0:01:56] [#] (
-> ...Rg2+)} 41. Rb8+ {[%emt 0:01:50]} Kxa4 {[%emt 0:00:00]} 42. Ra8+ {[%emt 0:
16:03]} Kb4 {[%emt 0:00:00]} 43. Rb8+ {[%emt 0:00:05]} Kc4 {[%emt 0:00:00]} 44.
Rc8+ {[%emt 0:00:05]} Kd4 {[%emt 0:00:00]} (44... Kb4 $5 {[%cal Rg3h3]} 45.
Rb8+ Kc4 $17) 45. Rh8 {[%emt 0:00:09]} Ke4 {[%emt 0:00:00]} 46. Rh6 {[%emt 0:
03:29]} Kf3 {[%emt 0:08:08]} 47. Rh5 {[%emt 0:00:45]} Kf4 {[%emt 0:01:24]} 48.
Ka3 {[%emt 0:01:37]} Re3 {[%emt 0:09:44]} 49. Kb2 {[%emt 0:00:26]} Rd3 {
[%emt 0:00:39]} 50. Ka3 {[%emt 0:01:15]} Rg3 {[%emt 0:00:00]} 51. Kb2 {[%emt 0:
00:00]} Kf3 {[%emt 0:00:01]} 52. Ka3 {[%emt 0:00:00]} Ke4 {[%emt 0:02:03]} 53.
Kb2 {[%emt 0:00:00]} Kd4 {[%emt 0:00:09]} 54. Rh8 {[%emt 0:00:00]} Kc4 {
[%emt 0:00:28]} 55. Rc8+ {[%emt 0:00:14]} Kd4 {[%emt 0:00:00]} 56. Rh8 {
[%emt 0:00:07]} Ke5 {[%emt 0:02:48]} 57. Rh6 {[%emt 0:00:27]} Rf3 {[%emt 0:01:
34]} 58. Ka3 {[%emt 0:01:58]} Kd4 {[%emt 0:02:04] Threatens to win with ...Kc3.
} 59. Kb2 {[%emt 0:01:14]} Rg3 {[%emt 0:00:52] Weighted Error Value: White=0.
03 (flawless) /Black=0.03 (flawless)} 1/2-1/2